bitfinex-derivatives/quotes_ETHF0:USTF0_20250430
["timestamp","ask_amount","ask_price","bid_price","bid_amount"]
[1746022184111,1.1406,1753.1,1752.9,1.14062]
[1746022184311,1.1406,1753.1,1753.0,5.2603]
[1746022184713,1.14068,1752.9,1752.8,6.089]
[1746022185214,4.96868,1752.9,1752.8,6.089]
[1746022185510,1.14074,1752.8,1752.7,5.2603]
[1746022185710,6.37484,1752.8,1752.7,12.48811]
[1746022185906,3.828,1752.9,1752.7,11.3473]
[1746022186108,1.14074,1752.8,1752.7,11.3473]
[1746022186310,1.14074,1752.8,1752.7,6.087]
[1746022186508,1.14087,1752.6,1752.5,76.58802]
[1746022186706,1.14087,1752.6,1752.5,81.5341]
[1746022187206,3.828,1752.6,1752.5,82.67504]
[1746022187412,4.96887,1752.6,1752.5,82.67504]
[1746022187606,3.828,1752.6,1752.5,82.67504]
[1746022188013,4.96887,1752.6,1752.5,82.67504]
[1746022188216,1.14087,1752.6,1752.5,82.67504]
[1746022188411,3.2078,1752.9,1752.5,81.5341]
[1746022188717,1.14077,1752.8,1752.7,1.14077]
[1746022188918,1.14083,1752.7,1752.6,1.14082]
[1746022189116,1.14078,1752.8,1752.7,1.14078]
[1746022189414,8.2719,1752.9,1752.6,1.14083]
[1746022189415,1.14083,1752.7,1752.6,1.14083]
[1746022189616,1.14077,1752.8,1752.7,1.14076]
[1746022190010,4.34853,1752.9,1752.8,1.14074]
[1746022190519,1.14086,1752.7,1752.6,1.14084]
[1746022190715,1.14087,1752.6,1752.5,81.5341]
[1746022190916,1.14082,1752.7,1752.5,81.5341]
[1746022191112,1.14087,1752.6,1752.5,81.5341]
[1746022191312,1.14087,1752.6,1752.5,82.67498]
[1746022191814,1.14087,1752.6,1752.5,81.5341]
[1746022192010,1.141,1752.4,1752.3,3.2078]
[1746022192208,1.141,1752.4,1752.2,6.087]
[1746022192209,1.14107,1752.3,1752.2,6.087]
[1746022192423,6.12557,1752.3,1752.2,6.087]
[1746022192913,11.12557,1752.3,1752.2,6.087]
[1746022193119,14.95357,1752.3,1752.2,6.087]
[1746022193617,1.1412,1752.1,1752.0,6.087]
[1746022193814,4.349,1752.1,1752.0,6.087]
[1746022194114,1.1412,1752.1,1752.0,7.22826]
[1746022194321,9.89248262,1752.3,1752.0,7.22826]
[1746022194322,4.35289262,1752.3,1752.2,1.14113]
[1746022194618,1.14113,1752.2,1752.1,6.11356]
[1746022195116,5.25459262,1752.3,1752.2,1.14113]
[1746022195318,0.00399262,1752.3,1752.2,1.14113]
[1746022195613,0.00399262,1752.3,1752.2,11.11353]
[1746022195808,0.00399262,1752.3,1752.2,6.11353]
[1746022196310,1.14506262,1752.3,1752.2,6.11353]
[1746022197213,1.14506262,1752.3,1752.2,4.9724]
[1746022197419,1.14113,1752.2,1752.1,9.5352]
[1746022197721,6.29173,1752.2,1752.1,15.6222]
[1746022197909,1.14511262,1752.3,1752.2,1.14113]
[1746022198114,0.00399262,1752.3,1752.2,6.32733]
[1746022198416,1.14506262,1752.3,1752.2,6.32733]
[1746022198616,0.00399262,1752.3,1752.2,6.32733]
[1746022198816,1.14506262,1752.3,1752.2,6.32733]
[1746022199220,1.14506262,1752.3,1752.2,5.1862]
[1746022199419,1.14506262,1752.3,1752.2,6.32733]
[1746022200016,0.00399262,1752.3,1752.2,6.32733]
[1746022200813,1.14133,1751.9,1751.8,5.1364]
[1746022201014,1.14139,1751.8,1751.7,4.62710051]
[1746022201319,0.00399262,1752.3,1751.9,2.85333]
[1746022201621,0.00399262,1752.3,1752.2,1.14113]
[1746022201812,0.00399262,1752.3,1752.2,7.16113]
[1746022202013,0.00399262,1752.3,1752.2,12.30913]
[1746022202716,1.14506262,1752.3,1752.2,11.168]
[1746022203418,2.85296,1752.2,1751.7,3.48567051]
[1746022203624,1.1412,1752.2,1752.1,1.14117]
[1746022204116,0.00399262,1752.3,1752.2,1.14113]
[1746022205009,6.05949,1753.0,1752.7,1.14073]
[1746022205214,1.14077,1752.8,1752.7,6.02]
[1746022205411,4.34857,1752.8,1752.7,4.78172]
[1746022205616,9.34857,1752.8,1752.7,4.78172]
[1746022205819,14.24127,1752.8,1752.7,4.78172]
[1746022206018,19.56927,1752.8,1752.7,4.78172]
[1746022206226,2.8522,1752.6,1752.1,5.2434]
[1746022206518,1.14107,1752.3,1752.2,6.019]
[1746022206716,2.85263,1752.4,1752.3,1.14103]
[1746022206717,1.14105,1752.4,1752.3,1.14103]
[1746022206915,6.46898,1752.5,1752.4,1.141]
[1746022207519,4.8927,1752.8,1752.4,2.85249]
[1746022207712,5.0636,1752.8,1752.7,1.14078]
[1746022207918,5.56649503,1753.0,1752.9,1.14068]
[1746022208229,1.14074,1752.8,1752.7,6.019]
[1746022209125,6.20434,1752.8,1752.7,6.019]
[1746022210223,10.03234,1752.8,1752.7,6.019]
[1746022212827,3.828,1752.8,1752.7,7.15981]
[1746022213223,6.70721503,1752.9,1752.7,11.019]
[1746022213420,6.70717503,1752.9,1752.8,5.2592]
[1746022213721,11.66127503,1752.9,1752.8,5.2592]
[1746022214126,15.48927503,1752.9,1752.8,5.2592]
[1746022214327,1.14074,1752.8,1752.7,6.019]
[1746022214528,1.14074,1752.8,1752.7,11.2782]
[1746022214830,1.14074,1752.8,1752.7,12.41901]
[1746022215128,4.96874,1752.8,1752.7,11.2782]
[1746022215330,9.92284,1752.8,1752.7,6.019]
[1746022215729,13.13064,1752.8,1752.7,6.019]
[1746022216031,1.14113,1752.2,1752.1,6.019]
[1746022216231,4.34893,1752.2,1752.1,6.019]
[1746022216826,9.33163,1752.2,1752.1,6.019]
[1746022217230,3.828,1752.2,1752.1,6.019]
[1746022217434,3.828,1752.2,1752.1,7.1602]
[1746022217637,3.828,1752.2,1752.1,12.4648]
[1746022217836,4.96913,1752.2,1752.1,12.4648]
[1746022218238,1.14113,1752.2,1752.1,11.3236]
[1746022218431,1.14113,1752.2,1752.1,12.4648]
[1746022218632,1.14113,1752.2,1752.1,11.3236]
[1746022218933,1.14113,1752.2,1752.1,6.019]
[1746022219233,4.96913,1752.2,1752.1,6.019]
[1746022219832,14.91193,1752.2,1752.1,6.019]
[1746022220325,1.14139,1751.8,1751.7,5.3401]
[1746022220530,1.14146,1751.7,1751.6,6.019]
[1746022220730,1.14146,1751.7,1751.6,11.3591]
[1746022221827,4.34926,1751.7,1751.6,6.019]
[1746022222241,1.14152,1751.6,1751.5,70.429]
[1746022222443,6.45312,1751.6,1751.5,70.429]
[1746022222644,6.45312,1751.6,1751.3,6.21840205]
[1746022222645,1.14165,1751.4,1751.3,6.21840205]
[1746022222849,1.14172,1751.3,1751.2,6.13878226]
[1746022223147,4.34952,1751.3,1751.2,3.62831226]
[1746022223449,1.14204,1750.8,1750.7,7.60693172]
[1746022224348,6.45364,1750.8,1750.7,12.95243172]
[1746022224546,3.2078,1750.9,1750.7,14.09450172]
[1746022224744,1.14204,1750.8,1750.7,12.95243172]
[1746022225450,1.14204,1750.8,1750.7,7.60693172]
[1746022225645,4.34984,1750.8,1750.7,7.60693172]
[1746022226245,8.17784,1750.8,1750.7,7.60693172]
[1746022226644,3.828,1750.8,1750.7,12.56393172]
[1746022226850,5.56649503,1751.3,1750.7,11.09911]
[1746022227147,1.1418,1751.2,1751.1,1.14184]
[1746022227350,11.99465503,1751.3,1751.1,7.16481]
[1746022227648,5.56649503,1751.3,1751.2,6.09878]
[1746022227845,5.56649503,1751.3,1751.1,6.023]
[1746022228053,6.31628,1751.2,1751.1,6.023]
[1746022229340,1.14204,1750.8,1750.7,5.197]
[1746022229549,1.14211,1750.7,1750.6,6.023]
[1746022230049,1.14208,1750.8,1750.6,7.16514]
[1746022230249,1.14208,1750.8,1750.7,5.1054]
[1746022230447,1.14211,1750.7,1750.6,6.023]
[1746022230751,1.14198,1750.9,1750.6,6.023]
[1746022230953,1.14198,1750.9,1750.8,1.14204]
[1746022231352,4.34977,1751.0,1750.9,1.14198]
[1746022231553,1.14197,1751.0,1750.9,1.14198]
[1746022231746,1.14188,1751.1,1751.0,1.14191]
[1746022231948,1.14179,1751.2,1751.1,1.1418]
[1746022232253,1.14179,1751.2,1751.1,6.1201]
[1746022233445,1.14179,1751.2,1751.1,4.9783]
[1746022233842,4.34957,1751.3,1751.1,6.12015]
[1746022234047,1.14178,1751.2,1751.1,4.9783]
[1746022234352,1.14185,1751.1,1751.0,5.953]
[1746022234649,2.85447,1751.2,1750.8,3.2078]
[1746022234847,4.8567,1751.1,1750.9,1.14194]
[1746022235151,2.85431,1751.3,1750.7,2.85528]
[1746022235347,1.142,1750.9,1750.8,1.14201]
[1746022235545,2.85466,1751.1,1750.5,3.2078]
[1746022235743,2.85588,1750.4,1750.0,4.35035]
[1746022235946,7.71265,1750.3,1749.9,5.953]
[1746022236154,1.14255,1750.1,1749.9,6.11999808]
[1746022236452,10.56875,1750.3,1749.9,7.09561]
[1746022236646,1.14257,1750.0,1749.9,5.953]
[1746022237250,1.14263,1749.9,1749.8,3.2078]
[1746022237440,6.07643,1749.9,1749.8,3.2078]
[1746022238055,2.85698,1749.7,1749.4,5.953]
[1746022238354,4.9338,1749.6,1749.4,5.953]
[1746022238657,1.14289,1749.5,1749.4,5.953]
[1746022238855,4.35069,1749.5,1749.4,5.953]
[1746022240453,1.14302,1749.3,1749.1,6.36541]
[1746022241457,1.14309,1749.2,1749.1,5.2223]
[1746022241660,5.1273,1749.4,1749.1,5.2223]
[1746022241661,1.14305,1749.3,1749.1,6.36541]
[1746022241957,1.14302,1749.3,1749.1,6.36541]
[1746022242161,1.14309,1749.2,1749.1,5.2223]
[1746022242457,1.14315,1749.1,1749.0,10.8672]
[1746022243057,1.14315,1749.1,1749.0,5.955]
[1746022243762,1.14332,1748.9,1748.7,74.84118]
[1746022243957,6.30047,1749.0,1748.8,1.14335]
[1746022244161,1.14319,1749.1,1748.9,1.14329]
[1746022244363,6.06538,1749.3,1748.7,73.6978]
[1746022244364,1.1431,1749.2,1749.1,1.14312]
[1746022244563,3.2078,1749.3,1749.1,1.14315]
[1746022244758,1.14315,1749.1,1749.0,5.956]
[1746022244961,1.14315,1749.1,1749.0,7.09922]
[1746022245155,1.14315,1749.1,1749.0,5.956]
[1746022245156,4.35095,1749.1,1749.0,5.956]
[1746022245856,1.14311,1749.2,1749.1,1.14315]
[1746022246051,3.2078,1749.6,1749.4,1.14292]
[1746022246252,6.06492,1749.6,1749.2,5.1415]
[1746022246461,1.14296,1749.4,1749.3,5.0552]
[1746022246957,3.2078,1749.6,1749.3,5.0552]
[1746022247157,1.14296,1749.4,1749.3,5.0552]
[1746022247356,1.14296,1749.4,1749.3,6.19822]
[1746022247965,1.14296,1749.4,1749.3,5.0552]
[1746022248764,1.14296,1749.4,1749.3,6.19822]
[1746022249264,1.14296,1749.4,1749.3,5.0552]
[1746022249760,2.8574,1749.4,1749.0,5.956]
[1746022249964,1.14315,1749.1,1749.0,5.956]
[1746022251054,6.02615,1749.1,1749.0,5.956]
[1746022251260,1.14315,1749.1,1749.0,5.956]
[1746022251453,1.14315,1749.1,1749.0,7.09922]
[1746022251654,1.14315,1749.1,1749.0,5.956]
[1746022251853,6.02615,1749.1,1749.0,5.956]
[1746022252049,1.14315,1749.1,1749.0,7.09922]
[1746022252256,1.14306,1749.3,1749.2,1.14309]
[1746022252461,1.14299,1749.4,1749.3,1.14302]
[1746022252765,1.14286,1749.6,1749.5,1.14289]
[1746022253057,1.14287,1749.6,1749.4,5.958]
[1746022253361,1.14287,1749.6,1749.5,5.3349]
[1746022253566,1.14287,1749.6,1749.5,6.47779]
[1746022253753,4.35061,1749.7,1749.6,1.14283]
[1746022253957,8.5226,1750.1,1750.0,1.14257]
[1746022254256,1.14254,1750.1,1750.0,1.14255]
[1746022254560,3.2078,1750.3,1749.9,5.959]
[1746022254756,1.1425,1750.1,1750.0,5.3349]
[1746022255259,1.1425,1750.1,1750.0,6.47743]
[1746022255861,4.35022,1750.3,1750.0,5.5018194]
[1746022256055,1.14246,1750.2,1750.1,1.14248]
[1746022256257,3.2078,1750.3,1750.2,1.14244]
[1746022256460,1.14222,1750.6,1750.4,1.14231]
[1746022256653,3.2078,1750.7,1750.4,1.14231]
[1746022256654,1.14224,1750.5,1750.4,7.10131]
[1746022256856,4.34993,1750.7,1750.6,1.14217]
[1746022257164,1.14217,1750.6,1750.4,5.959]
[1746022257466,1.14224,1750.5,1750.4,5.959]
[1746022257865,6.09673,1750.6,1750.4,7.10131]
[1746022258055,1.14224,1750.5,1750.4,5.959]
[1746022259563,4.35004,1750.5,1750.4,5.959]
[1746022260159,3.2078,1750.5,1750.1,8.0294]
[1746022260367,1.1425,1750.1,1750.0,5.958]
[1746022260565,3.2078,1750.4,1750.0,5.958]
[1746022260760,1.14237,1750.3,1750.0,5.958]
[1746022260961,4.35014,1750.4,1750.0,8.81442]
[1746022261267,1.14229,1750.5,1750.4,1.14231]
[1746022261565,3.2078,1750.6,1750.2,1.14239]
[1746022261766,3.2078,1750.6,1750.2,2.85603]
[1746022261963,1.14214,1750.7,1750.3,5.2065]
[1746022262158,1.1422,1750.6,1750.5,1.14221]
[1746022262364,1.14224,1750.5,1750.4,7.02728]
[1746022262565,1.14224,1750.5,1750.4,5.885]
[1746022264064,4.35004,1750.5,1750.4,5.885]
[1746022265074,1.1425,1750.1,1750.0,5.1446]
[1746022265274,1.1425,1750.1,1750.0,11.0296]
[1746022265568,1.1425,1750.1,1750.0,5.1446]
[1746022265774,1.14257,1750.0,1749.9,0.21768353]
[1746022265972,1.14257,1750.0,1749.8,13.4421]
[1746022266174,1.14257,1750.0,1749.9,1.14261]
[1746022266670,3.2078,1750.3,1749.9,5.21737843]
[1746022266876,1.14263,1749.9,1749.8,17.2701]
[1746022267068,1.1426,1750.0,1749.9,1.14258]
[1746022267270,1.14263,1749.9,1749.8,13.66404614]
[1746022267576,1.14261,1750.0,1749.9,1.14259]
[1746022267874,1.14263,1749.9,1749.8,14.80668614]
[1746022268074,1.14235,1750.4,1750.0,2.85642]
[1746022268368,1.14201,1750.9,1750.8,1.14203]
[1746022268573,1.14201,1750.9,1750.8,5.885]
[1746022268777,1.14198,1750.9,1750.8,5.885]
[1746022268969,13.41740503,1751.2,1750.8,5.885]
[1746022269172,1.14198,1750.9,1750.8,5.885]
[1746022270280,1.14196,1751.0,1750.9,1.14195]
[1746022270466,4.34966,1751.1,1751.0,1.14191]
[1746022270671,4.34965,1751.1,1751.0,1.14191]
[1746022271166,1.14194,1751.0,1750.9,1.14194]
[1746022271371,1.14196,1751.0,1750.9,1.14197]
[1746022272168,1.14198,1750.9,1750.8,7.25293936]
[1746022272371,1.14198,1750.9,1750.8,5.885]
[1746022272673,1.14211,1750.7,1750.6,3.2078]
[1746022272874,1.14231,1750.4,1750.3,5.883]
[1746022273063,1.14244,1750.2,1750.1,1.14246]
[1746022273269,1.14244,1750.2,1750.1,5.883]
[1746022274079,1.14244,1750.2,1750.1,7.0255]
[1746022274378,1.14244,1750.2,1750.1,5.883]
[1746022275274,6.20544,1750.2,1750.1,5.883]
[1746022276776,10.063,1750.2,1749.8,76.398]
[1746022276982,1.14263,1749.9,1749.8,76.398]
[1746022277280,3.2078,1749.9,1749.5,7.02688]
[1746022277483,1.14283,1749.6,1749.4,5.3532]
[1746022277682,1.14281,1749.7,1749.5,7.02685]
[1746022277980,1.14271,1749.8,1749.7,1.14274]
[1746022278478,1.14265,1749.9,1749.8,1.14268]
[1746022278782,5.3512,1750.0,1749.8,1.14265]
[1746022279082,8.1899,1750.3,1749.9,11.2372]
[1746022279272,1.14257,1750.0,1749.9,12.37979]
[1746022279473,5.3512,1750.2,1750.0,1.14253]
[1746022279678,1.1425,1750.1,1750.0,5.1501]
[1746022280073,1.1425,1750.1,1749.9,5.884]
[1746022280074,1.14257,1750.0,1749.9,5.884]
[1746022280280,6.13427,1750.0,1749.9,5.884]
[1746022280777,1.14257,1750.0,1749.9,11.0341]
[1746022281372,1.14257,1750.0,1749.9,5.884]
[1746022281575,6.14257,1750.0,1749.9,5.884]
[1746022281776,6.13427,1750.0,1749.9,5.884]
[1746022281976,3.2078,1750.1,1750.0,1.14257]
[1746022282170,3.2078,1750.1,1750.0,6.29267]
[1746022282385,8.1899,1750.3,1750.0,6.29267]
[1746022282580,1.14249,1750.2,1750.0,6.29267]
[1746022282780,1.1425,1750.1,1750.0,6.29267]
[1746022282981,3.2078,1750.3,1750.0,5.1501]
[1746022283172,3.2078,1750.3,1750.1,1.14244]
[1746022283377,4.35017,1750.3,1750.2,5.3188]
[1746022283881,1.1425,1750.1,1750.0,7.02757]
[1746022284073,1.1425,1750.1,1750.0,12.34637]
[1746022284478,3.2078,1750.3,1750.2,1.14244]
[1746022284982,1.14244,1750.2,1750.1,11.24514]
[1746022285178,3.2078,1750.3,1750.0,11.2038]
[1746022285379,1.1425,1750.1,1750.0,12.34635]
[1746022285577,5.2612,1750.2,1750.0,11.2038]
[1746022285782,1.14247,1750.2,1750.1,1.1425]
[1746022285981,1.1425,1750.1,1750.0,12.34632]
[1746022286880,1.14248,1750.2,1750.1,1.14244]
[1746022287083,4.35011,1750.5,1750.4,1.14231]
[1746022287281,3.2078,1750.5,1750.2,5.3342]
[1746022287478,1.14237,1750.3,1750.2,5.3342]
[1746022287782,7.9229,1750.4,1750.0,5.884]
[1746022287986,1.14259,1750.1,1750.0,12.36075]
[1746022288187,1.14259,1750.1,1750.0,12.36077]
[1746022288385,1.14259,1750.1,1750.0,11.2182]
[1746022289185,1.14259,1750.1,1750.0,12.36077]
[1746022289585,6.2095,1750.2,1750.1,1.1425]
[1746022289785,1.1425,1750.1,1750.0,12.36073]
[1746022289983,6.2022,1750.1,1750.0,11.2182]
[1746022290187,6.2022,1750.1,1750.0,12.36077]
[1746022290486,3.2078,1750.3,1750.0,11.2182]
[1746022290690,3.2078,1750.3,1750.2,1.14244]
[1746022290984,8.2257,1750.7,1750.6,1.14217]
[1746022291185,3.2078,1750.7,1750.5,6.95419]
[1746022291390,1.14217,1750.6,1750.5,6.95419]
[1746022291584,1.14217,1750.6,1750.5,5.812]
[1746022291894,6.15777,1750.6,1750.5,5.812]
[1746022292588,6.15777,1750.6,1750.5,6.95424]
[1746022292790,6.15777,1750.6,1750.5,5.812]
[1746022293785,1.14237,1750.3,1750.2,6.95443]
[1746022294388,3.2078,1750.3,1749.7,4.9384]
[1746022294700,1.14289,1749.5,1749.4,5.812]
[1746022294997,1.14289,1749.5,1749.4,10.7354]
[1746022295197,5.2497,1749.6,1749.4,11.87836]
[1746022295490,3.2078,1749.7,1749.4,10.7354]
[1746022295691,1.14275,1749.8,1749.4,16.80059]
[1746022295886,1.14284,1749.6,1749.5,1.14285]
[1746022296205,6.39251,1749.7,1749.6,1.14283]
[1746022296491,1.14278,1749.7,1749.6,1.14279]
[1746022296887,1.14283,1749.6,1749.5,6.06626]
[1746022297288,1.14283,1749.6,1749.5,4.9234]
[1746022297684,1.14283,1749.6,1749.5,6.06629]
[1746022297889,1.14283,1749.6,1749.5,6.06624]
[1746022298799,21.57875,1749.8,1749.5,6.06624]
[1746022298800,1.14281,1749.7,1749.6,1.14281]
[1746022299002,1.14283,1749.6,1749.5,6.06624]
[1746022299195,1.14283,1749.6,1749.5,4.9234]
[1746022299497,1.14289,1749.5,1749.4,5.812]
[1746022300100,6.46329,1749.5,1749.4,5.812]
[1746022300397,1.14289,1749.5,1749.4,5.812]
[1746022300593,6.46329,1749.5,1749.4,5.812]
[1746022300799,1.14309,1749.2,1749.1,5.813]
[1746022301000,4.35089,1749.2,1749.1,5.813]
[1746022301399,8.2078,1749.2,1748.5,70.54]
[1746022301595,10.273,1749.3,1748.6,5.2896]
[1746022301596,1.14342,1748.7,1748.6,5.2896]
[1746022301797,1.14355,1748.5,1748.4,5.813]
[1746022301996,4.35135,1748.5,1748.4,5.813]
[1746022302392,1.14361,1748.4,1748.3,11.36163675]
[1746022302697,6.54111,1748.4,1748.3,11.36163675]
[1746022302898,11.54111,1748.4,1748.3,11.36163675]
[1746022303303,6.54111,1748.4,1748.3,11.36163675]
[1746022303602,13.2566,1748.4,1747.8,77.49798]
[1746022303797,1.14383,1748.1,1747.9,6.07869]
[1746022304101,8.6053,1748.4,1747.9,8.98948015]
[1746022304300,8.6053,1748.4,1748.2,1.14371]
[1746022304610,9.74896,1748.4,1748.3,4.9348]
[1746022305701,9.74896,1748.4,1748.3,6.07848]
[1746022305702,8.6053,1748.4,1748.3,6.07848]
[1746022305897,4.9954,1748.6,1748.3,4.9348]
[1746022306098,4.9954,1748.6,1748.5,1.14355]
[1746022306304,4.9954,1748.8,1748.7,1.14342]
[1746022306507,1.14326,1749.0,1748.6,5.815]
[1746022306701,1.14335,1748.8,1748.7,5.2682]
[1746022306903,1.14342,1748.7,1748.6,5.815]
[1746022307205,1.14355,1748.6,1748.4,1.14359]
[1746022307409,6.02155,1748.6,1748.5,11.0832]
[1746022308204,6.02155,1748.6,1748.5,5.815]
[1746022308404,1.14368,1748.3,1748.2,5.816]
[1746022309200,1.14385,1748.1,1748.0,1.14387]
[1746022309401,1.14378,1748.2,1748.1,1.14381]
[1746022309606,6.02173,1748.3,1748.1,1.14381]
[1746022309902,6.02173,1748.3,1748.2,4.9513]
[1746022310508,4.878,1748.3,1748.2,6.09504]
[1746022310805,2.85877,1748.6,1748.5,1.14352]
[1746022310806,1.1435,1748.6,1748.5,1.14352]
[1746022311006,5.0323,1748.7,1748.6,1.14348]
[1746022311205,4.35117,1748.8,1748.7,1.14342]
[1746022311397,3.2078,1748.8,1748.7,1.14342]
[1746022311599,1.1433,1748.9,1748.8,1.14335]
[1746022311802,1.14348,1748.6,1748.5,4.9513]
[1746022312099,3.2078,1748.3,1747.1,2.86116]
[1746022312304,3.2078,1747.7,1747.6,1.14414]
[1746022312502,4.35169,1748.0,1747.6,5.817]
[1746022312705,3.2078,1748.0,1747.8,1.14397]
[1746022312901,3.2078,1748.0,1747.9,1.14394]
[1746022313105,1.14382,1748.1,1747.9,3.828]
[1746022313406,3.2078,1748.1,1748.0,6.96087]
[1746022313812,3.2078,1748.1,1748.0,11.96087]
[1746022314007,3.2078,1748.1,1748.0,6.96087]
[1746022314202,3.2078,1748.1,1748.0,10.78887]
[1746022314905,3.2078,1748.1,1748.0,15.78887]
[1746022315098,3.2078,1748.1,1748.0,10.78887]
[1746022315710,4.35161,1748.1,1748.0,9.645]
[1746022316005,3.2078,1748.1,1748.0,10.78887]
[1746022316213,4.35161,1748.1,1748.0,5.817]
[1746022316409,3.2078,1748.1,1748.0,6.96087]
[1746022317104,3.2078,1748.1,1748.0,10.78887]
[1746022317304,4.35161,1748.1,1748.0,9.645]
[1746022318313,1.144,1747.8,1747.7,5.818]
[1746022318615,1.14414,1747.6,1747.5,5.2758]
[1746022318912,4.35194,1747.6,1747.5,12.238]
[1746022319108,4.35194,1747.6,1747.5,11.0938]
[1746022319508,4.35194,1747.6,1747.5,5.818]
[1746022319702,9.35194,1747.6,1747.5,5.818]
[1746022319901,4.35194,1747.6,1747.5,5.818]
[1746022320612,3.2078,1747.6,1747.3,77.5503]
[1746022320806,6.06756,1747.5,1747.4,5.1556]
[1746022321006,6.06756,1747.5,1747.4,6.29987]
[1746022321007,3.2078,1747.5,1747.4,6.29987]
[1746022321312,3.2078,1747.8,1747.6,1.14409]
[1746022321500,3.2078,1747.8,1747.7,10.9026]
[1746022321501,9.27513,1747.8,1747.7,10.9026]
[1746022321705,8.1311,1747.8,1747.7,12.04667]
[1746022321902,1.14396,1747.9,1747.8,1.14397]
[1746022322201,1.14396,1747.9,1747.8,1.144]
[1746022322409,1.14396,1747.9,1747.8,5.2273]
[1746022322706,1.144,1747.8,1747.7,9.575]
[1746022322902,4.3518,1747.8,1747.7,9.575]
[1746022323111,1.1442,1747.5,1747.4,5.747]
[1746022323312,3.2078,1747.6,1747.4,10.9743]
[1746022323517,1.1442,1747.5,1747.4,10.9743]
[1746022323714,3.2078,1747.6,1747.3,70.587]
[1746022323715,1.14427,1747.4,1747.3,70.587]
[1746022324015,1.14433,1747.3,1747.2,5.747]
[1746022324216,1.1444,1747.2,1747.1,1.14444]
[1746022324408,4.3522,1747.2,1747.1,5.747]
[1746022325506,1.14407,1747.7,1747.6,1.14408]
[1746022325713,1.14407,1747.7,1747.6,5.747]
[1746022325909,1.1442,1747.5,1747.4,3.2078]
[1746022326112,1.1442,1747.5,1747.4,5.747]
[1746022326314,6.36449,1747.6,1747.4,5.747]
[1746022326514,1.1442,1747.5,1747.4,5.747]
[1746022326712,6.3645,1747.5,1747.4,10.9227]
[1746022326913,10.5717,1747.7,1747.6,1.14414]
[1746022327105,5.2203,1747.7,1747.5,4.35196]
[1746022327309,1.14414,1747.6,1747.5,5.1757]
[1746022327715,1.1442,1747.5,1747.4,9.575]
[1746022327914,6.3645,1747.5,1747.4,9.575]
[1746022328114,6.3645,1747.5,1747.4,5.747]
[1746022328314,6.3645,1747.5,1747.4,6.89127]
[1746022328519,2.86002,1747.8,1747.4,10.7608]
[1746022328820,1.1442,1747.5,1747.4,11.90505]
[1746022329113,1.1442,1747.5,1747.4,10.7608]
[1746022329718,1.1442,1747.5,1747.4,11.90507]
[1746022330119,1.14416,1747.6,1747.5,1.14417]
[1746022330314,5.1231,1747.7,1747.6,1.14414]
[1746022330507,1.14383,1748.1,1747.7,2.86018]
[1746022330713,1.14394,1747.9,1747.8,11.90579]
[1746022330912,2.85939,1748.2,1747.8,11.90576]
[1746022331221,1.14392,1748.0,1747.9,4.35173]
[1746022331423,3.69864862,1749.0,1748.0,2.85969]
[1746022331612,2.85855,1748.7,1748.3,1.14366]
[1746022331812,5.2552,1748.6,1748.5,1.14355]
[1746022332013,1.14348,1748.6,1748.5,4.35129]
[1746022332208,1.14346,1748.7,1748.5,4.35129]
[1746022332517,5.2552,1748.8,1748.7,1.14342]
[1746022332713,3.69864862,1749.0,1748.9,1.14329]
[1746022333015,4.84186862,1749.0,1748.9,5.748]
[1746022333217,10.09706862,1749.0,1748.9,5.748]
[1746022333414,10.09706862,1749.0,1748.9,15.09909]
[1746022333415,3.69864862,1749.0,1748.9,15.09909]
[1746022333618,3.69864862,1749.0,1748.9,15.26929]
[1746022333918,3.69864862,1749.0,1748.9,14.126]
[1746022334118,3.69864862,1749.0,1748.9,15.26929]
[1746022334312,4.84186862,1749.0,1748.9,12.06149]
[1746022334513,8.90644862,1749.0,1748.9,6.89129]
[1746022334715,8.90644862,1749.0,1748.9,8.9558]
[1746022334716,10.04966862,1749.0,1748.9,8.9558]
[1746022334917,6.35102,1749.0,1748.9,10.09909]
[1746022335117,5.2078,1749.0,1748.9,10.09909]
[1746022335523,12.78525,1749.5,1749.0,1.14317]
[1746022335717,5.2078,1749.3,1749.2,1.14309]
[1746022336021,6.35085,1749.3,1749.2,1.14309]
[1746022336212,6.35082,1749.3,1749.2,1.14309]
[1746022336416,6.35082,1749.3,1749.2,6.42279]
[1746022336618,5.2078,1749.3,1749.2,6.42279]
[1746022336920,6.35082,1749.3,1749.2,5.2797]
[1746022337125,5.2078,1749.3,1749.2,5.2797]
[1746022337417,6.35082,1749.3,1749.2,6.42279]
[1746022337620,1.14309,1749.2,1749.1,3.2078]
[1746022337819,5.071,1749.5,1749.1,4.35095]
[1746022338116,5.0836,1749.4,1749.3,3.2078]
[1746022338419,6.22659,1749.4,1749.3,8.9548]
[1746022338814,6.22659,1749.4,1749.3,5.747]
[1746022339215,11.22659,1749.4,1749.3,5.747]
[1746022339514,2.85695,1749.7,1749.4,1.14294]
[1746022339723,6.06463,1749.8,1749.4,4.35074]
[1746022339917,5.0836,1749.7,1749.5,1.14287]
[1746022340112,6.22638,1749.7,1749.4,3.2078]
[1746022340317,6.22638,1749.7,1749.5,6.17493]